[Event "57th Biel Festival MTO 2024"]
[White "Xue,Haowen"]
[Black "Harsha Bharathakoti"]
[Site "Biel"]
[Round "3.4"]
[Annotator "RC"]
[Result "1-0"]
[Date "2024.07.17"]
[WhiteElo "2452"]
[BlackElo "2569"]
[PlyCount "67"]
[TimeControl "60"]

1. c4 {[%emt 0:0:3]} c5 {[%emt 0:7:14]} 2. Nf3 {[%emt 0:0:5]} Nc6 {[%emt 0:0:12]} 3. g3 {[%emt 0:0:15]} g6 {[%emt 0:0:4]} 4. Bg2 {[%emt 0:0:5]} Bg7 {[%emt 0:0:6]} 5. Nc3 {[%emt 0:0:4]} d6 {[%emt 0:0:8]} 6. O-O {[%emt 0:0:18]} Bf5 {[%emt 0:0:4]} 7. h3 {[%emt 0:2:56]} e5 {[%emt 0:3:24]} 8. d3 {[%emt 0:0:57]} Nge7 {[%emt 0:0:5]} 9. a3 {[%emt 0:15:48]} O-O {[%emt 0:2:28]} 10. Rb1 {[%emt 0:0:25]} a5 {[%emt 0:0:7]} 11. Bd2 {[%emt 0:2:6]} Be6 {[%emt 0:24:52]} 12. Qc1 {[%emt 0:5:26]} f6 {[%emt 0:8:45]} 13. Bh6 {[%emt 0:14:22]} Qd7 {[%emt 0:3:10]} 14. Bxg7 {[%emt 0:1:55]} Kxg7 {[%emt 0:0:5]} 15. Kh2 {[%emt 0:0:7]} b6 {[%emt 0:7:57]} 16. e3 {[%emt 0:7:18]} d5 {[%emt 0:16:46]} 17. cxd5 {[%emt 0:0:20]} Nxd5 {[%emt 0:0:5]} 18. Rd1 {[%emt 0:2:49]} Rac8 {[%emt 0:6:55]} 19. Ne4 {[%emt 0:7:10]} Rfd8 {[%emt 0:9:52]} 20. b3 {[%emt 0:0:33]} Nde7 {[%emt 0:6:26]} 21. Qb2 {[%emt 0:1:28]} Nf5 {[%emt 0:0:44]} 22. Rbc1 {[%emt 0:9:36]} Qf7 {[%emt 0:1:15]} 23. b4 {[%emt 0:6:45]} axb4 {[%emt 0:1:44]} 24. axb4 {[%emt 0:0:5]} Nxb4 {[%emt 0:0:37]} 25. d4 {[%emt 0:12:18]} exd4 {[%emt 0:1:31]} 26. exd4 {[%emt 0:0:6]} Qe7 {[%emt 0:5:3]} 27. dxc5 {[%emt 0:3:1]} Nd3 {[%emt 0:0:2]} 28. Rxd3 {[%emt 0:0:36]} Rxd3 {[%emt 0:0:4]} 29. Qxb6 {[%emt 0:5:23]} Rb3 {[%emt 0:4:14]} 30. Qa6 {[%emt 0:0:36]} Rd8 {[%emt 0:0:56]} 31. Re1 {[%emt 0:0:48]} Bc8 {[%emt 0:0:29]} 32. Qa5 {[%emt 0:0:25]} Qd7 {[%emt 0:0:34]} 33. c6 {[%emt 0:0:22]} Qd5 {[%emt 0:0:29]} 34. Qc7+ {[%emt 0:0:12]} 1-0

[Event "57th Biel Festival MTO 2024"]
[White "Jumabayev,Rinat"]
[Black "Gan-Erdene,Sugar"]
[Site "Biel"]
[Round "3.5"]
[Annotator "TA"]
[Result "1-0"]
[Date "2024.07.17"]
[WhiteElo "2575"]
[BlackElo "2424"]
[PlyCount "63"]
[TimeControl "60"]

{[%evp 9,63,21,30,20,35,14,16,20,15,5,27,14,18,14,20,25,23,6,11,8,36,16,25,14,41,34,42,27,70,67,60,59,45,40,50,64,64,46,59,36,97,86,93,81,222,227,228,187,277,206,1305,1288,29980,29981,29978,29978]} 1. e4 {[%emt 0:0:49]} c5 {[%emt 0:0:8]} 2. Nf3 {[%emt 0:0:5]} e6 {[%emt 0:0:37]} 3. d4 {[%emt 0:0:5]} cxd4 {[%emt 0:0:5]} 4. Nxd4 {[%emt 0:0:1]} Nc6 {[%emt 0:0:8]} 5. Nc3 {[%emt 0:0:4][%cal Bb1c3,Bc3b5,Bb5d4][%mdl 32]} Qc7 {[%emt 0:0:7]} 6. Ncb5 {[%emt 0:0:8]} Qb8 {[%emt 0:3:30]} 7. Bd3 {[%emt 0:0:13]} a6 {[%emt 0:6:13]} 8. Nxc6 {[%emt 0:0:10] The position is equal.} bxc6 {[%emt 0:0:3]} 9. Nd4 {[%emt 0:0:8]} Bd6 {[%emt 0:1:39][%cal Og8f6]} 10. Nf3 {[%emt 0:6:59]} Ne7 {[%emt 0:0:38][%cal Bg8e7,Be7g6,Bg6f4,Bf4d3][%mdl 32]} 11. O-O {[%emt 0:0:31]} Ng6 {[%emt 0:0:14]} 12. h4 {[%emt 0:4:54][%cal Bh2h4,Bh4h5][%mdl 32]} h6 {[%emt 0:11:29]} 13. h5 {[%emt 0:4:2]} Nf4 {[%emt 0:1:4]} 14. Re1 {[%emt 0:0:13]} Be7 {[%emt 0:18:41]} 15. e5 {[%emt 0:11:6]} Nxd3 {[%emt 0:0:17]} 16. Qxd3 {[%emt 0:0:25]} d5 {[%emt 0:10:38]} 17. exd6 {[%emt 0:11:44]} Qxd6 {[%emt 0:0:6]} 18. Qc4 {[%emt 0:5:41]} Bf6 {[%emt 0:12:59]} 19. Qg4 {[%emt 0:7:12] White is more active.} Rb8 {[%emt 0:8:58][%cal Oe8g8]} 20. c4 {[%emt 0:12:43]} O-O $1 {[%emt 0:10:41]} 21. Bxh6 {[%emt 0:3:27]} e5 $1 {[%emt 0:0:15]} 22. Qg3 {[%emt 0:0:6]} Rxb2 {[%emt 0:1:1]} 23. Bg5 {[%emt 0:5:25]} (23. Nxe5 $2 Bxe5 24. Qxe5 Qxe5 (24... Qxh6 $2 25. Qxb2 Be6 26. Re5 $18 )25. Rxe5 gxh6 $19 )Bxg5 {[%emt 0:2:23]} 24. Nxg5 {[%emt 0:0:10][%cal Og5e4]} (24. Qxg5 f6 25. Qc1 Rb4 $11 )f6 {[%emt 0:0:57]} (24... Qf6 $1 $14 )25. Ne4 $36 {[%emt 0:0:22][%mdl 2048] Black is under strong pressure.} Qe7 {[%emt 0:0:40]} 26. Rad1 {[%emt 0:1:50][%cal Ba1d1,Bd1d6,Bd6c6,Bc6e6][%mdl 32]} Be6 {[%emt 0:9:20] Loses the game.} (26... Bf5 $16 )27. h6 $18 {[%emt 0:3:27] Hoping for Rd6.} g5 {[%emt 0:7:52] [#]} 28. Rd6 $1 {[%emt 0:3:22][%cal Oe4g5] Threatens to win with Nxg5!} Kh7 {[%emt 0:1:4]} (28... Kh8 $142 29. Rxc6 Rbb8 )29. Rxc6 {[%emt 0:2:14][%cal Oe4g5] Strongly threatening Nxg5+!} Kxh6 {[%emt 0:1:11] [#]} (29... Bf5 30. Nd6 (30. Rxa6 Bxe4 31. Rxe4 Qb7 $16 )Bg6 31. Rxa6 Rd2 )30. Nxg5 $1 {[%emt 0:4:42][%mdl 512]} fxg5 {[%emt 0:0:8]} (30... Bf5 31. Rxe5 )31. Qh3+ {[%emt 0:3:14]} (31. Rxa6 $2 {loses.} Rfxf2 32. Qxf2 (32. Qh3+ $2 Kg7 $19 )Rxf2 33. Kxf2 Qf8+ 34. Ke2 Qc8 $19 )Kg7 {[%emt 0:0:21]} 32. Rxe6 {[%emt 0:0:11] Weighted Error Value: White=0.10 (very precise) /Black=0.47.  Mistake:       	---       	Black=4      Inaccurate:     	---       	Black=4      OK:         	White=7     	Black=9      Best:        	White=3     	Black=1      Strong:       	White=1     	Black=2      Brilliant:      	White=1     	---} 1-0

[Event "57th Biel Festival MTO 2024"]
[White "Kobo,Ori"]
[Black "Dotzer,Lukas"]
[Site "Biel"]
[Round "3.6"]
[Annotator "TA"]
[Result "1-0"]
[Date "2024.07.17"]
[WhiteElo "2529"]
[BlackElo "2369"]
[PlyCount "71"]
[TimeControl "60"]

{[%evp 10,71,11,-1,40,0,0,0,0,-2,-24,-25,0,-51,0,7,102,95,179,178,155,173,176,183,285,278,273,299,313,320,388,386,369,359,641,643,749,736,743,709,722,447,416,321,344,341,327,329,327,341,318,268,295,222,278,277,417,407,639,618,699,691,677,670]} 1. e4 {[%emt 0:1:34]} c5 {[%emt 0:0:3]} 2. Nf3 {[%emt 0:0:13]} d6 {[%emt 0:0:4]} 3. d4 {[%emt 0:0:32]} cxd4 {[%emt 0:0:6]} 4. Nxd4 {[%emt 0:0:5]} Nf6 {[%emt 0:0:9]} 5. Nc3 {[%emt 0:0:13]} a6 {[%emt 0:0:6]} 6. Rg1 {[%emt 0:0:14]} h5 {[%emt 0:2:6]} 7. h3 {[%emt 0:0:10]} b5 {[%emt 0:12:42][%cal Bb7b5,Bb5b4][%mdl 32]} 8. g4 {[%emt 0:0:49]} g6 {[%emt 0:8:8] The position is equal.} 9. a4 {[%emt 0:11:38]} b4 {[%emt 0:18:13]} 10. Nd5 {[%emt 0:0:21]} Bg7 {[%emt 0:4:32]} (10... Nxd5 {simplifies} 11. exd5 Bb7 12. Bg2 Qc7 )11. Be3 {[%emt 0:11:11]} (11. gxh5 $11 Rxh5 12. Be3 )Bb7 {[%emt 0:5:59]} ({Black should try} 11... hxg4 $1 $15 12. hxg4 Bb7 )12. gxh5 $11 {[%emt 0:12:18]} Nxd5 {[%emt 0:18:11]} (12... Nxh5 $11 {remains equal.} 13. Nxb4 Nd7 )13. exd5 $16 {[%emt 0:2:15] Black is now going downhill.} Rxh5 {[%emt 0:1:11] [#]} (13... Bxd4 $16 14. Qxd4 Rxh5 )14. Rxg6 $3 $18 {[%emt 0:18:44][%mdl 512]} fxg6 {[%emt 0:5:40] [#]} 15. Ne6 $1 {[%emt 0:1:2][%csl LRd8,LRg7][%cal Bd4e6,Be6g7,Bg7e6][%mdl 32]} Rxd5 {[%emt 0:8:11]} 16. Qg4 {[%emt 0:2:38]} (16. Nxg7+ Kf7 17. Bc4 e6 18. Bxd5 Bxd5 19. Nxe6 Bxe6 (19... Kxe6 $2 20. Qg4+ Kf7 21. O-O-O $18 ))Qa5 {[%emt 0:6:34]} (16... Qc8 $142 17. Qxg6+ (17. Nxg7+ $2 Kf7 $17 )Kd7 18. Nxg7 Re5 )17. Nxg7+ {[%emt 0:5:55]} Kd8 {[%emt 0:0:28][%cal Be8d8,Bd8c8,Bc8c7][%mdl 32]} 18. Ne6+ {[%emt 0:5:31]} (18. Qxg6 Re5 $16 )Kc8 {[%emt 0:4:23]} 19. Qxg6 {[%emt 0:5:43] Intending Qe8+ and mate.} Nc6 {[%emt 0:17:34]} 20. Qe8+ {[%emt 0:8:5]} Nd8 {[%emt 0:0:0] [#]} 21. Bg2 $1 {[%emt 0:1:53]} (21. Qxe7 Re5 22. Qxd8+ Qxd8 23. Nxd8 Kxd8 $14 )Bc6 $2 {[%emt 0:0:0]} (21... Rb8 22. h4 (22. Bxd5 Bxd5 $18 )(22. Qxe7 Re5 $11 )b3+ 23. c3 Bc6 24. Qxe7 Nxe6 )22. Qxe7 {[%emt 0:1:6]} (22. Bxd5 $2 Bxe8 23. O-O-O Nxe6 24. Bxe6+ Kc7 $19 )Nxe6 {[%emt 0:0:0]} 23. Qxe6+ {[%emt 0:0:8]} Kc7 {[%emt 0:0:0]} 24. Qf7+ {[%emt 0:0:8]} Kc8 {[%emt 0:0:0]} 25. b3 {[%emt 0:6:32]} Rb8 {[%emt 0:0:0]} 26. Bxd5 {[%emt 0:0:50]} Qxd5 {[%emt 0:0:0]} 27. Qxd5 {[%emt 0:0:7]} Bxd5 {[%emt 0:0:0][%mdl 4096] Endgame. KRB-KRB} 28. O-O-O {[%emt 0:0:17]} Be4 {[%emt 0:0:0]} 29. Rxd6 {[%emt 0:0:41]} Rb7 {[%emt 0:0:0]} 30. Rd4 {[%emt 0:2:21]} (30. Rxa6 Rc7 31. Rb6 Bxc2 $18 )Bf5 {[%emt 0:0:25]} 31. Rc4+ {[%emt 0:0:51]} Kd7 {[%emt 0:0:29]} 32. h4 {[%emt 0:0:17]} Ke6 {[%emt 0:2:20]} (32... Rc7 $142 33. Rxc7+ (33. Rxb4 Bxc2 34. Rd4+ Ke6 $18 )Kxc7 )33. Rc6+ {[%emt 0:1:39]} Kd5 {[%emt 0:0:0]} (33... Kd7 $142 )34. Rxa6 {[%emt 0:0:24] White is clearly winning.} Rc7 {[%emt 0:0:0]} 35. Ra5+ {[%emt 0:0:7]} Ke6 {[%emt 0:0:0]} 36. Rc5 {[%emt 0:11:11] Weighted Error Value: White=0.34/Black=0.50.  Mistake:       	White=1     	Black=7      Inaccurate:     	White=1     	---        OK:         	White=12    	Black=3      Best:        	White=2     	Black=3      Strong:       	White=2     	---        Brilliant:      	White=1     	---} 1-0

[Event "57th Biel Festival MTO 2024"]
[White "Sukandar,Irine Kharisma"]
[Black "Koustav Chatterjee"]
[Site "Biel"]
[Round "3.7"]
[Annotator "TA"]
[Result "0-1"]
[Date "2024.07.17"]
[WhiteElo "2338"]
[BlackElo "2525"]
[PlyCount "108"]
[TimeControl "60"]

{[%evp 51,108,-50,-30,-30,-30,-38,-38,-69,-69,-69,-69,-69,-69,-77,-45,-37,-28,-29,-29,-63,0,0,0,0,0,-87,-73,-84,-85,-97,-93,-103,-65,-359,-374,-939,-936,-1182,-1209,-1217,-1127,-29990,-1002,-1066,-881,-1090,-1017,-1042,-1093,-2320,-2061,-2729,-2757,-11484,-6306,-29970,-29960,-5114,-5106]} 1. e4 {[%emt 0:1:18]} e5 {[%emt 0:0:9]} 2. Nf3 {[%emt 0:0:30]} Nc6 {[%emt 0:0:6]} 3. Bc4 {[%emt 0:2:42]} Nf6 {[%emt 0:0:16]} 4. d3 {[%emt 0:0:10]} Bc5 {[%emt 0:0:7]} 5. O-O {[%emt 0:2:20]} d6 {[%emt 0:0:14]} 6. a4 {[%emt 0:0:34]} a5 {[%emt 0:1:29]} 7. Be3 {[%emt 0:1:49]} Bxe3 {[%emt 0:2:32]} 8. fxe3 {[%emt 0:0:4]} O-O {[%emt 0:0:23]} 9. Nbd2 {[%emt 0:0:35]} Ne7 {[%emt 0:20:14]} 10. Nh4 {[%emt 0:3:21]} c6 {[%emt 0:7:19]} 11. Qe1 {[%emt 0:2:4]} d5 {[%emt 0:2:40]} 12. Bb3 {[%emt 0:0:42]} Be6 {[%emt 0:14:59]} 13. Qg3 {[%emt 0:7:23]} Nd7 {[%emt 0:0:17]} 14. Rf2 {[%emt 0:5:10]} f6 {[%emt 0:5:53]} 15. Raf1 {[%emt 0:0:57]} Kh8 {[%emt 0:0:13]} 16. d4 {[%emt 0:24:49]} Qb8 {[%emt 0:8:43]} 17. exd5 {[%emt 0:8:43]} cxd5 {[%emt 0:2:50]} 18. Ne4 {[%emt 0:6:53]} Ra6 {[%emt 0:13:27]} 19. Nc3 {[%emt 0:3:2]} g5 {[%emt 0:2:1]} 20. Nf5 {[%emt 0:4:36]} Bxf5 {[%emt 0:1:0]} 21. Rxf5 {[%emt 0:0:48]} Nxf5 {[%emt 0:0:26]} 22. Rxf5 {[%emt 0:0:6]} exd4 {[%emt 0:4:20]} 23. exd4 {[%emt 0:0:51]} Qxg3 {[%emt 0:4:13]} 24. hxg3 {[%emt 0:0:2]} Nb6 {[%emt 0:1:14]} 25. Nxd5 {[%emt 0:1:1]} Nxd5 {[%emt 0:0:5]} 26. Bxd5 {[%emt 0:3:41]} Rd6 {[%emt 0:1:41]} 27. c3 {[%emt 0:6:28]} b6 {[%emt 0:3:22]} 28. Bc4 {[%emt 0:1:37]} Kg7 {[%emt 0:0:35]} 29. Kf2 {[%emt 0:0:57]} h5 {[%emt 0:1:3]} 30. Be2 {[%emt 0:2:37]} Kh6 {[%emt 0:0:43]} 31. Ke3 {[%emt 0:1:40]} Re8+ {[%emt 0:0:9]} 32. Kd2 {[%emt 0:0:16]} Re7 {[%emt 0:1:13]} 33. Rf1 {[%emt 0:1:3]} g4 {[%emt 0:3:51]} 34. Bd3 {[%emt 0:0:41]} Rde6 {[%emt 0:0:11]} 35. Rf5 {[%emt 0:4:1]} Re3 {[%emt 0:0:38]} (35... Rd7 $15 )36. Rxf6+ $11 {[%emt 0:0:29]} Kg7 {[%emt 0:0:4]} 37. Rg6+ {[%emt 0:2:51]} (37. Rxb6 Rxg3 38. Bf1 Rf7 $17 )Kf7 {[%emt 0:0:4]} 38. Rxb6 {[%emt 0:0:7]} (38. Rh6 $11 )Rxg3 $17 {[%emt 0:0:5]} 39. Bc4+ {[%emt 0:11:35]} Kg7 {[%emt 0:0:30]} 40. Bd5 {[%emt 0:0:4]} h4 {[%emt 0:3:21]} 41. Rb8 {[%emt 0:15:19]} Rd7 {[%emt 0:9:39]} 42. Be4 $2 {[%emt 0:2:43][%mdl 8192] [#]} (42. c4 $1 $15 )Rf7 $1 $19 {[%emt 0:17:59]} 43. d5 $2 {[%emt 0:11:31]} (43. Rb7 h3 44. gxh3 gxh3 45. b4 axb4 46. cxb4 )Re7 $19 {[%emt 0:11:9]} 44. d6 {[%emt 0:0:26]} Rxe4 {[%emt 0:1:4]} 45. d7 {[%emt 0:0:20]} Rxg2+ {[%emt 0:0:5]} (45... Rxa4 46. d8=Q (46. d8=N $2 Rxg2+ 47. Ke3 Rg3+ 48. Kd2 h3 $19 )Rxg2+ 47. Kd3 Rg3+ 48. Kc2 Rg2+ 49. Kb3 )46. Kd1 {[%emt 0:1:48]} Rg1+ {[%emt 0:0:5]} (46... Rf4 47. Rg8+ Kh7 (47... Kxg8 $2 48. d8=Q+ Kh7 49. Qc7+ Kg6 50. Qc6+ Kg5 51. Qd5+ Rf5 52. Qxg2 $18 )(47... Kf7 $2 48. Rf8+ Kxf8 49. d8=Q+ Kf7 50. Qd5+ Kg6 51. Qxg2 $18 )48. Rh8+ Kg6 (48... Kg7 49. Rg8+ Kh7 50. Rh8+ Kg6 51. Rg8+ Kh7 $11 )49. Rg8+ Kh7 (49... Kf7 50. Rf8+ Kxf8 51. d8=Q+ Kf7 52. Qc7+ Kg6 53. Qxf4 $18 )50. Rh8+ Kg6 (50... Kg7 51. Rg8+ Kh7 $11 )51. Rg8+ Kh7 $11 (51... Kf7 $2 52. Rf8+ Kxf8 53. d8=Q+ Kf7 54. Qd5+ Kg6 55. Qxg2 $18 ))(46... Rxa4 $142 47. Rg8+ Kh6 (47... Kxg8 $2 48. d8=Q+ Kg7 49. Qd7+ Kf6 50. Qc6+ Kg5 51. Qxg2 $18 )(47... Kf7 48. Rf8+ Kg6 49. Rg8+ Kf5 50. Rf8+ Ke4 51. Rf2 Rxf2 52. Ke1 Kf3 53. d8=R Re2+ 54. Kf1 Ra1+ 55. Rd1 Rxd1# )48. Rh8+ Kg6 (48... Kg7 49. Rg8+ Kf7 50. Rf8+ Kg6 51. Rg8+ Kf5 52. Rf8+ Ke4 53. Rf2 Rxf2 54. Ke1 Kf3 55. d8=R Re2+ 56. Kf1 Ra1+ 57. Rd1 Rxd1# )49. Rg8+ Kf7 50. Rf8+ Kg6 (50... Kxf8 $2 51. d8=Q+ Kg7 52. Qd7+ Kh6 53. Qc6+ Kg5 54. Qxg2 $18 )(50... Ke6 51. Re8+ Kxd7 52. Re2 h3 53. Rd2+ Rxd2+ 54. Kxd2 h2 55. Ke3 h1=Q 56. c4 Rxc4 57. b3 Qe1+ 58. Kd3 Qe4+ 59. Kd2 Rc2+ 60. Kd1 Qe2# )51. Rg8+ Kf5 (51... Kf7 52. Rf8+ Kg6 53. Rg8+ )52. Rf8+ Ke4 (52... Ke6 53. Re8+ Kxd7 54. Re2 h3 55. Ke1 h2 56. Rd2+ Rxd2 57. Kxd2 h1=Q 58. c4 Rxc4 59. b3 Rd4+ 60. Ke3 Qg1+ 61. Ke2 g3 62. Kf3 Qf2# )53. Rf2 Rxf2 54. Ke1 Kf3 (54... Rxb2 55. d8=Q Ra1+ 56. Qd1 Rxd1+ 57. Kxd1 h3 58. Kc1 Rg2 59. Kb1 h2 60. c4 h1=Q# )55. d8=R Re2+ (55... Rxb2 56. Rd1 h3 57. Rd3+ Kf4 58. Rd2 Ke3 59. Rd8 Re2+ 60. Kf1 Ra1+ 61. Rd1 Rxd1# )56. Kf1 Ra1+ 57. Rd1 Rxd1# )47. Kd2 $19 {[%emt 0:1:33] [#]} Ree1 $1 {[%emt 0:0:11]} (47... Rxa4 48. d8=Q (48. d8=R $2 h3 $19 )Rg2+ 49. Kd3 Rg3+ 50. Kc2 Rg2+ 51. Kb3 )48. Rg8+ {[%emt 0:1:29]} Kf7 {[%emt 0:0:11]} (48... Kxg8 49. d8=Q+ Kf7 50. Qxh4 $11 )49. Rf8+ {[%emt 0:9:17]} Ke6 {[%emt 0:0:11]} ({Not} 49... Kxf8 50. d8=Q+ Kf7 51. Qxh4 $11 )50. Re8+ {[%emt 0:0:16]} Kxd7 {[%emt 0:0:5]} 51. Rxe1 {[%emt 0:0:5]} Rg2+ {[%emt 0:2:16]} 52. Ke3 {[%emt 0:0:56]} h3 {[%emt 0:0:32]} 53. Kf4 {[%emt 0:2:57]} h2 {[%emt 0:0:18]} ({Less strong is} 53... Rxb2 54. Kxg4 h2 55. Rh1 $15 )54. Rh1 {[%emt 0:1:1]} g3 {[%emt 0:0:8]} ({Inferior is} 54... Rxb2 55. Kxg4 Rg2+ 56. Kh3 $11 )0-1

[Event "57th Biel Festival MTO 2024"]
[White "Song,Ethan"]
[Black "Mendonca,Leon Luke"]
[Site "Biel"]
[Round "3.8"]
[Annotator "TA"]
[Result "0-1"]
[Date "2024.07.17"]
[WhiteElo "2244"]
[BlackElo "2634"]
[PlyCount "88"]
[TimeControl "60"]

{[%evp 16,88,16,17,10,6,3,0,0,-7,0,-19,-15,-16,0,0,0,-2,-6,-13,6,7,19,-4,17,25,17,7,11,0,0,0,0,0,0,-41,-33,-89,-86,-236,-106,-107,-82,-98,-93,-94,-88,-110,-111,-293,-281,-239,-105,-110,-109,-340,-350,-341,-343,-324,-335,-742,-741,-703,-552,-1151,-1081,-1471,-1471,-1471,-1471,-1341,-1097,-4133,-4133]} 1. e4 {[%emt 0:0:3]} c5 {[%emt 0:4:10]} 2. Nf3 {[%emt 0:0:13]} d6 {[%emt 0:0:18]} 3. Bb5+ {[%emt 0:0:8]} Bd7 {[%emt 0:0:54]} 4. Bxd7+ {[%emt 0:0:17]} Nxd7 {[%emt 0:0:33]} 5. O-O {[%emt 0:0:52]} Ngf6 {[%emt 0:0:4]} 6. Qe2 {[%emt 0:0:25]} e6 {[%emt 0:1:0]} 7. c3 {[%emt 0:0:33]} Be7 {[%emt 0:0:41]} 8. d4 {[%emt 0:0:29]} O-O {[%emt 0:0:25]} 9. Rd1 {[%emt 0:2:34]} cxd4 {[%emt 0:10:20]} 10. cxd4 {[%emt 0:0:28]} b5 {[%emt 0:2:13]} 11. e5 {[%emt 0:5:24]} dxe5 {[%emt 0:0:56] The position is equal.} 12. dxe5 {[%emt 0:1:10]} Nd5 {[%emt 0:0:4]} 13. Nc3 {[%emt 0:3:36]} Nxc3 {[%emt 0:7:20]} 14. bxc3 {[%emt 0:0:3]} Qc7 {[%emt 0:3:51]} 15. Qxb5 {[%emt 0:5:59]} Nb6 {[%emt 0:3:10]} 16. Be3 {[%emt 0:4:39]} Nd5 {[%emt 0:8:21]} 17. Bd4 {[%emt 0:3:27]} Rfc8 {[%emt 0:4:57]} 18. Rac1 {[%emt 0:4:14]} a6 {[%emt 0:13:13]} 19. Qa4 {[%emt 0:13:10]} Qc4 {[%emt 0:6:39]} (19... Qc6 $5 20. Qxc6 Rxc6 $11 )20. Qxc4 {[%emt 0:3:42]} Rxc4 {[%emt 0:0:2]} 21. Nd2 {[%emt 0:7:19]} Ra4 {[%emt 0:1:49]} 22. g3 {[%emt 0:3:3]} Rxa2 {[%emt 0:3:54]} 23. Ne4 {[%emt 0:1:19]} a5 {[%emt 0:2:57]} 24. c4 {[%emt 0:2:11]} Nb4 {[%emt 0:1:2]} 25. Bc3 {[%emt 0:3:36]} Re2 {[%emt 0:5:44]} 26. Bxb4 {[%emt 0:4:59]} (26. Re1 $1 $15 Rxe1+ 27. Rxe1 )axb4 $17 {[%emt 0:0:51]} 27. Nd6 {[%emt 0:9:59]} (27. Re1 $17 Raa2 28. Kg2 )Rxe5 {[%emt 0:12:40]} (27... b3 $19 {[%cal Ob3b2] has better winning chances.} 28. Rb1 b2 (28... Rxe5 29. Rxb3 Rc5 30. Kg2 $19 ))28. c5 {[%emt 0:1:9]} Kf8 {[%emt 0:13:19]} (28... b3 {keeps more tension.} 29. c6 b2 30. Rb1 Rd5 )29. Nb7 {[%emt 0:9:48]} Rb8 $36 {[%emt 0:2:10][%mdl 2048] Keeping White busy.} 30. Rd7 {[%emt 0:4:14]} Ke8 {[%emt 0:0:17]} 31. Rc7 {[%emt 0:6:49]} Rd5 {[%emt 0:0:5]} 32. c6 {[%emt 0:2:0] Prevents Rd7.} (32. Rb1 $17 )Ra8 $1 $19 {[%emt 0:1:53]} 33. Kg2 {[%emt 0:1:1]} g5 {[%emt 0:0:13]} (33... f6 $19 {and Black stays clearly on top. Strongly threatening ...e5.} 34. Rc2 b3 )34. Ra1 $17 {[%emt 0:2:2] [#]} Rb8 {[%emt 0:0:50]} ({Don't do} 34... Rxa1 35. Rc8+ Rd8 (35... Bd8 36. c7 $16 )36. Nxd8 $15 )35. Ra7 $2 {[%emt 0:0:46]} (35. Ra6 $17 )b3 $19 {[%emt 0:0:29]} 36. Na5 {[%emt 0:0:21] [#]} Bd6 {[%emt 0:0:28]} 37. Rcb7 {[%emt 0:2:9]} Rxb7 {[%emt 0:0:22]} 38. Nxb7 {[%emt 0:0:37][%mdl 4096] Endgame. KRB-KRN} (38. cxb7 Rb5 39. Nc4 )Be5 {[%emt 0:0:42] Hoping for ...b2. Black is clearly winning.} 39. Ra3 {[%emt 0:1:24]} Rb5 {[%emt 0:0:23] ...b2 is the strong threat.} 40. f4 {[%emt 0:0:50]} gxf4 {[%emt 0:0:4]} 41. gxf4 {[%emt 0:50:8]} b2 {[%emt 0:1:30]} 42. fxe5 {[%emt 0:0:0]} b1=Q {[%emt 0:0:12]} (42... b1=B $2 {loses.} 43. Nd6+ Kf8 44. Nxb5 $18 (44. Ra8+ Kg7 $18 ))43. Nd6+ {[%emt 0:0:0]} Kd8 {[%emt 0:0:58] ( -> ...Rb2+)} 44. Ra8+ {[%emt 0:0:0]} Rb8 {[%emt 0:0:8] Weighted Error Value: White=0.88/Black=0.16 (very precise) .  Loses game:     	White=2     	---        Mistake:       	White=3     	Black=2      Inaccurate:     	White=2     	---        OK:         	White=9     	Black=13     Best:        	White=3     	Black=3      Strong:       	---       	Black=1} 0-1

[Event "57th Biel Festival MTO 2024"]
[White "Aryan Chopra"]
[Black "Boldoo,Erdenepurev"]
[Site "Biel"]
[Round "3.9"]
[Annotator "TA"]
[Result "1-0"]
[Date "2024.07.17"]
[WhiteElo "2631"]
[BlackElo "2385"]
[PlyCount "99"]
[TimeControl "60"]

{[%evp 11,99,32,42,33,37,35,39,36,45,34,35,53,29,0,9,7,7,22,22,15,36,36,76,56,56,38,44,39,42,42,32,36,42,16,15,0,0,10,25,10,25,25,25,6,13,0,27,27,67,66,82,83,93,77,163,177,218,197,215,204,219,69,441,464,500,411,489,490,456,430,874,818,29967,29968,29979,29982,29981,29982,29990,29991,29992,29993,29993,29994,29994,29993,29995,29994,29994,29995]} 1. e4 {[%emt 0:0:10]} c5 {[%emt 0:0:44]} 2. Nf3 {[%emt 0:0:5]} e6 {[%emt 0:0:10]} 3. d4 {[%emt 0:0:5]} cxd4 {[%emt 0:0:8]} 4. Nxd4 {[%emt 0:0:5]} Nc6 {[%emt 0:0:15]} 5. Nc3 {[%emt 0:0:7]} Qc7 {[%emt 0:0:58]} 6. Be3 {[%emt 0:0:57]} a6 {[%emt 0:1:18]} 7. Qf3 {[%emt 0:0:26]} b5 {[%emt 0:1:50]} 8. Qg3 {[%emt 0:1:25]} Qxg3 {[%emt 0:1:34]} 9. hxg3 {[%emt 0:0:6] White is slightly better.} Bb7 {[%emt 0:0:5]} 10. Nb3 {[%emt 0:0:49]} Nf6 {[%emt 0:5:27]} 11. f3 {[%emt 0:0:13]} d5 {[%emt 0:1:6]} 12. a4 {[%emt 0:0:46]} bxa4 {[%emt 0:11:12]} 13. Rxa4 {[%emt 0:0:57]} dxe4 {[%emt 0:1:51]} 14. Nxe4 {[%emt 0:1:6]} Nxe4 {[%emt 0:1:49]} 15. fxe4 {[%emt 0:0:6]} Bd6 {[%emt 0:16:1]} 16. Nc5 {[%emt 0:7:55]} Bxg3+ {[%emt 0:1:16]} 17. Ke2 {[%emt 0:8:21] White is much more active.} Bc8 {[%emt 0:20:19]} 18. Kf3 {[%emt 0:1:36]} Bd6 {[%emt 0:0:7]} 19. Bb5 {[%emt 0:5:21]} ({Don't play} 19. Nxa6 Ne5+ 20. Kf2 Ke7 $17 )Bd7 {[%emt 0:0:45]} 20. Nxd7 {[%emt 0:2:43]} Kxd7 {[%emt 0:0:7]} 21. Rha1 {[%emt 0:1:21]} Rhb8 {[%emt 0:6:25]} ({Don't go for} 21... axb5 $2 22. Rxa8 Rxa8 23. Rxa8 $18 )22. Bxc6+ {[%emt 0:32:28]} Kxc6 {[%emt 0:0:33]} 23. Rxa6+ {[%emt 0:0:9]} Rxa6 {[%emt 0:1:12]} 24. Rxa6+ $14 {[%emt 0:0:5][%mdl 4096] Endgame. KRB-KRB} Kc7 {[%emt 0:0:9]} 25. b3 {[%emt 0:0:56]} h5 {[%emt 0:2:5]} 26. Ra5 {[%emt 0:12:34]} e5 {[%emt 0:1:19]} 27. Ke2 {[%emt 0:1:32] Strongly threatening Ra7+.} Kd7 {[%emt 0:4:0]} 28. Kd3 {[%emt 0:1:20]} g6 {[%emt 0:0:21]} 29. Ra7+ {[%emt 0:1:5]} Ke6 {[%emt 0:0:4]} 30. Ra6 $1 {[%emt 0:0:6][%cal Ob3b4]} Kd7 {[%emt 0:0:7]} 31. Bb6 $1 {[%emt 0:4:51]} Rc8 {[%emt 0:7:39]} 32. c4 {[%emt 0:3:41]} Rc6 {[%emt 0:0:21]} (32... f5 $16 )33. Ra7+ $18 {[%emt 0:0:31]} Ke6 {[%emt 0:0:4]} 34. Be3 {[%emt 0:8:49]} f5 {[%emt 0:0:32][%cal Bf7f5,Bf5f4][%mdl 32]} 35. Kc3 $1 {[%emt 0:0:6]} f4 {[%emt 0:4:27] [#]} 36. Bf2 {[%emt 0:0:5]} (36. Bg1 $1 $18 )Bc5 $2 {[%emt 0:0:5][%mdl 8192] This costs Black the game.} ({Black should play} 36... g5 $1 $14 )37. Bxc5 {[%emt 0:0:11]} Rxc5 {[%emt 0:0:1] KR-KR} 38. b4 {[%emt 0:11:30][%cal Bb3b4,Bb4b5,Bb5b6][%mdl 32]} Rc8 {[%emt 0:0:5]} 39. b5 {[%emt 0:3:4]} g5 {[%emt 0:0:9][%cal Bg6g5,Bg5g4][%mdl 32]} 40. Rh7 {[%emt 0:0:10][%cal Ob5b6] Inhibits Rh8. aiming for b6!} h4 {[%emt 0:13:48]} (40... g4 $142 41. Rxh5 (41. Rh6+ Kd7 $18 )g3 )41. b6 {[%emt 0:9:24]} Kd6 {[%emt 0:5:35] [#]} 42. Kb4 $1 {[%emt 0:1:51] White mates.} Kc6 {[%emt 0:12:25]} 43. c5 {[%emt 0:2:28][%cal Bc4c5,Bc5c6,Bc6c7][%mdl 32]} g4 {[%emt 0:0:5]} 44. Rxh4 {[%emt 0:0:25]} Rd8 {[%emt 0:0:5]} 45. Rh6+ {[%emt 0:0:26]} Kb7 {[%emt 0:0:5]} 46. Kb5 {[%emt 0:0:20]} Rf8 {[%emt 0:0:11]} 47. c6+ {[%emt 0:0:28]} Kb8 {[%emt 0:0:5]} 48. Ka6 {[%emt 0:0:52]} f3 {[%emt 0:0:5]} 49. c7+ {[%emt 0:0:8]} Kc8 {[%emt 0:0:5]} 50. Rh7 {[%emt 0:0:7] Weighted Error Value: White=0.07 (flawless) /Black=0.40.  Loses game:     	---       	Black=1      Mistake:       	White=1     	Black=2      Inaccurate:     	White=2     	Black=4      OK:         	White=12    	Black=12     Best:        	White=5     	Black=1      Strong:       	White=3     	---} 1-0